[Event "Late-Titled-Tuesday-Blitz-September-05-2023"]
[Site "Chess.com"]
[Date "2023.09.05"]
[Round "8"]
[White "jcibarra"]
[Black "Leo_C"]
[Result "1-0"]
[WhiteElo "2902"]
[BlackElo "2648"]
[TimeControl "180+1"]
[EndTime "15:29:23 PDT"]
[Termination "jcibarra won on time"]

1. e4 {[%clk 0:03:00.9]} 1... c5 {[%clk 0:02:59.8]} 2. Nf3 {[%clk 0:03:01.2]}
2... e6 {[%clk 0:03:00.2]} 3. d4 {[%clk 0:03:01]} 3... cxd4 {[%clk 0:03:01.1]}
4. Nxd4 {[%clk 0:03:01.6]} 4... Nf6 {[%clk 0:03:01.7]} 5. Nc3 {[%clk 0:03:02]}
5... Nc6 {[%clk 0:03:02.2]} 6. Ndb5 {[%clk 0:03:02.6]} 6... d6 {[%clk
0:02:59.4]} 7. Bf4 {[%clk 0:03:02.3]} 7... e5 {[%clk 0:02:59.4]} 8. Bg5 {[%clk
0:03:02.9]} 8... a6 {[%clk 0:02:59.8]} 9. Na3 {[%clk 0:03:03.6]} 9... b5 {[%clk
0:03:00.2]} 10. Bxf6 {[%clk 0:03:04.3]} 10... gxf6 {[%clk 0:03:00.1]} 11. Nd5
{[%clk 0:03:05]} 11... Bg7 {[%clk 0:02:56]} 12. g3 {[%clk 0:03:05.6]} 12... Ne7
{[%clk 0:02:46.5]} 13. Nxe7 {[%clk 0:03:02.1]} 13... Qxe7 {[%clk 0:02:46.2]} 14.
Bg2 {[%clk 0:03:00.5]} 14... Be6 {[%clk 0:02:42.1]} 15. c3 {[%clk 0:02:57.4]}
15... Rc8 {[%clk 0:02:15.4]} 16. O-O {[%clk 0:02:56]} 16... f5 {[%clk
0:02:06.9]} 17. exf5 {[%clk 0:02:39.6]} 17... Bxf5 {[%clk 0:02:07.8]} 18. Nc2
{[%clk 0:02:39.9]} 18... Be6 {[%clk 0:02:03.8]} 19. Ne3 {[%clk 0:02:38.4]} 19...
O-O {[%clk 0:02:03.7]} 20. Qh5 {[%clk 0:02:18]} 20... f5 {[%clk 0:01:53.3]} 21.
Rfd1 {[%clk 0:02:17.6]} 21... f4 {[%clk 0:01:45.4]} 22. Be4 {[%clk 0:02:10.2]}
22... h6 {[%clk 0:01:15.2]} 23. Nf5 {[%clk 0:01:35.2]} 23... Bxf5 {[%clk
0:01:14.4]} 24. Bxf5 {[%clk 0:01:35.3]} 24... Rcd8 {[%clk 0:01:14.5]} 25. Qg6
{[%clk 0:01:30.6]} 25... Rf6 {[%clk 0:01:08.6]} 26. Qh7+ {[%clk 0:01:27.1]}
26... Kf8 {[%clk 0:01:00.2]} 27. Be4 {[%clk 0:01:26.1]} 27... Qf7 {[%clk
0:00:47.1]} 28. Rd3 {[%clk 0:00:56.9]} 28... Qg8 {[%clk 0:00:15.6]} 29. Qxg8+
{[%clk 0:00:54.3]} 29... Kxg8 {[%clk 0:00:16.5]} 30. a4 {[%clk 0:00:54]} 30...
fxg3 {[%clk 0:00:14]} 31. hxg3 {[%clk 0:00:54.1]} 31... h5 {[%clk 0:00:05.6]}
32. Bb7 {[%clk 0:00:44.9]} 32... h4 {[%clk 0:00:01.6]} 33. Bxa6 {[%clk
0:00:43.2]} 33... bxa4 {[%clk 0:00:01.7]} 34. Bc4+ {[%clk 0:00:40.5]} 34... Kf8
{[%clk 0:00:01.3]} 35. Rxa4 {[%clk 0:00:38.5]} 35... hxg3 {[%clk 0:00:01.2]} 36.
fxg3 {[%clk 0:00:38.9]} 36... Bh6 {[%clk 0:00:01.8]} 37. Bd5 {[%clk 0:00:32.2]}
37... Kg7 {[%clk 0:00:02.2]} 38. Ra7+ {[%clk 0:00:31.2]} 38... Kh8 {[%clk
0:00:02.6]} 39. Kg2 {[%clk 0:00:20.1]} 39... Rdf8 {[%clk 0:00:02.7]} 40. Kh3
{[%clk 0:00:19.8]} 40... Bg5 {[%clk 0:00:02.2]} 41. Be4 {[%clk 0:00:17.8]} 41...
Rh6+ {[%clk 0:00:02.2]} 42. Kg2 {[%clk 0:00:15.8]} 42... Bc1 {[%clk 0:00:02.2]}
43. b4 {[%clk 0:00:14.8]} 43... Bg5 {[%clk 0:00:01.8]} 44. b5 {[%clk 0:00:13.4]}
44... Bd8 {[%clk 0:00:02]} 45. Rb7 {[%clk 0:00:12.5]} 45... Rff6 {[%clk
0:00:01.4]} 46. c4 {[%clk 0:00:11.8]} 46... Rf8 {[%clk 0:00:01.6]} 47. Rd7
{[%clk 0:00:10.4]} 1-0

[Event "Late-Titled-Tuesday-Blitz-September-05-2023"]
[Site "Chess.com"]
[Date "2023.09.05"]
[Round "8"]
[White "Jospem"]
[Black "GaiozNigalidze"]
[Result "1-0"]
[WhiteElo "3033"]
[BlackElo "2776"]
[TimeControl "180+1"]
[EndTime "15:29:25 PDT"]
[Termination "Jospem won on time"]

1. e4 {[%clk 0:03:00.9]} 1... c5 {[%clk 0:02:59.5]} 2. Nf3 {[%clk 0:03:00.9]}
2... Nc6 {[%clk 0:03:00.2]} 3. c3 {[%clk 0:03:01.2]} 3... e5 {[%clk 0:02:59.9]}
4. Bc4 {[%clk 0:03:01.5]} 4... Bd6 {[%clk 0:02:59.2]} 5. d3 {[%clk 0:03:01]}
5... h6 {[%clk 0:02:41.7]} 6. Nbd2 {[%clk 0:02:57]} 6... Nge7 {[%clk 0:02:38.7]}
7. a4 {[%clk 0:02:53.4]} 7... Bc7 {[%clk 0:02:35.1]} 8. Nf1 {[%clk 0:02:47]}
8... d5 {[%clk 0:02:25.8]} 9. exd5 {[%clk 0:02:47.9]} 9... Nxd5 {[%clk
0:02:26.3]} 10. Ng3 {[%clk 0:02:48.7]} 10... O-O {[%clk 0:02:04.8]} 11. O-O
{[%clk 0:02:49.2]} 11... Nf4 {[%clk 0:01:57.6]} 12. Re1 {[%clk 0:02:40.9]} 12...
Na5 {[%clk 0:01:47.6]} 13. Bxf4 {[%clk 0:02:27.6]} 13... exf4 {[%clk 0:01:46.6]}
14. Ne4 {[%clk 0:02:28.4]} 14... b6 {[%clk 0:01:27.8]} 15. Ba2 {[%clk
0:02:25.4]} 15... Bg4 {[%clk 0:01:24.1]} 16. d4 {[%clk 0:01:44.5]} 16... cxd4
{[%clk 0:01:06.1]} 17. Qxd4 {[%clk 0:01:44.5]} 17... Bxf3 {[%clk 0:00:56.8]} 18.
Qxd8 {[%clk 0:01:34.8]} 18... Raxd8 {[%clk 0:00:52.4]} 19. gxf3 {[%clk
0:01:35.7]} 19... Kh7 {[%clk 0:00:45.9]} 20. Re2 {[%clk 0:01:30.7]} 20... Nc6
{[%clk 0:00:33.2]} 21. Kg2 {[%clk 0:01:23.2]} 21... Ne5 {[%clk 0:00:31.9]} 22.
Nd2 {[%clk 0:01:16.6]} 22... Rd6 {[%clk 0:00:28.9]} 23. Bb1+ {[%clk 0:01:11.4]}
23... Kg8 {[%clk 0:00:23.5]} 24. Bc2 {[%clk 0:01:05]} 24... Rfd8 {[%clk
0:00:20.4]} 25. Nb3 {[%clk 0:00:57.6]} 25... Nc4 {[%clk 0:00:15.6]} 26. Nd4
{[%clk 0:00:58.1]} 26... Bb8 {[%clk 0:00:13.1]} 27. Rae1 {[%clk 0:00:48.5]}
27... Kf8 {[%clk 0:00:09.1]} 28. Bb3 {[%clk 0:00:40.6]} 28... Na5 {[%clk
0:00:08]} 29. Bc2 {[%clk 0:00:41]} 29... Nc6 {[%clk 0:00:07.6]} 30. Nb3 {[%clk
0:00:31.5]} 30... Rd5 {[%clk 0:00:07.2]} 31. Be4 {[%clk 0:00:23.7]} 31... Rg5+
{[%clk 0:00:06.9]} 32. Kf1 {[%clk 0:00:24.3]} 32... Ne5 {[%clk 0:00:07.7]} 33.
Nd4 {[%clk 0:00:24]} 33... Rh5 {[%clk 0:00:07.6]} 34. Kg2 {[%clk 0:00:24.2]}
34... Rg5+ {[%clk 0:00:07.4]} 35. Kh1 {[%clk 0:00:25]} 35... g6 {[%clk
0:00:07.2]} 36. b4 {[%clk 0:00:20.6]} 36... Kg7 {[%clk 0:00:06.6]} 37. a5 {[%clk
0:00:18.9]} 37... Nc4 {[%clk 0:00:06]} 38. a6 {[%clk 0:00:16.9]} 38... Re8
{[%clk 0:00:04.9]} 39. Nc6 {[%clk 0:00:14.2]} 39... Nd6 {[%clk 0:00:03.3]} 40.
Bd3 {[%clk 0:00:13.9]} 40... Rc8 {[%clk 0:00:03.5]} 41. Nxb8 {[%clk 0:00:12.6]}
41... Rxb8 {[%clk 0:00:03.3]} 42. Re7 {[%clk 0:00:13.3]} 42... Rd8 {[%clk
0:00:02.7]} 43. Rxa7 {[%clk 0:00:10.8]} 43... Nf5 {[%clk 0:00:02.5]} 44. Bc4
{[%clk 0:00:09.8]} 44... Nd6 {[%clk 0:00:01.5]} 45. Bb3 {[%clk 0:00:10.2]} 45...
b5 {[%clk 0:00:01.4]} 46. Rc7 {[%clk 0:00:10.3]} 1-0

[Event "Late-Titled-Tuesday-Blitz-September-05-2023"]
[Site "Chess.com"]
[Date "2023.09.05"]
[Round "8"]
[White "lachesisQ"]
[Black "Fandorine"]
[Result "0-1"]
[WhiteElo "3070"]
[BlackElo "2940"]
[TimeControl "180+1"]
[EndTime "15:29:27 PDT"]
[Termination "Fandorine won on time"]

1. d4 {[%clk 0:03:00.9]} 1... Nf6 {[%clk 0:02:58.6]} 2. c4 {[%clk 0:03:00.6]}
2... g6 {[%clk 0:02:57.1]} 3. Nc3 {[%clk 0:03:00.1]} 3... Bg7 {[%clk 0:02:57.7]}
4. e4 {[%clk 0:03:00.2]} 4... d6 {[%clk 0:02:58.4]} 5. Be2 {[%clk 0:03:00.3]}
5... O-O {[%clk 0:02:58.9]} 6. Nf3 {[%clk 0:03:00.6]} 6... e5 {[%clk 0:02:58.9]}
7. O-O {[%clk 0:03:01]} 7... h6 {[%clk 0:02:52.2]} 8. Qc2 {[%clk 0:02:59.8]}
8... Nbd7 {[%clk 0:02:43.4]} 9. Re1 {[%clk 0:02:55.9]} 9... Re8 {[%clk
0:02:42.4]} 10. Bf1 {[%clk 0:02:55.2]} 10... exd4 {[%clk 0:02:38]} 11. Nxd4
{[%clk 0:02:56.1]} 11... a6 {[%clk 0:02:38.3]} 12. f3 {[%clk 0:02:47.8]} 12...
Ne5 {[%clk 0:02:26.4]} 13. Be3 {[%clk 0:02:45.6]} 13... c5 {[%clk 0:02:26.4]}
14. Nb3 {[%clk 0:02:42.4]} 14... Be6 {[%clk 0:02:26.8]} 15. Rad1 {[%clk
0:02:38.2]} 15... Qc7 {[%clk 0:02:23.2]} 16. Nd2 {[%clk 0:02:33.4]} 16... g5
{[%clk 0:02:19.9]} 17. b3 {[%clk 0:02:29.6]} 17... Rad8 {[%clk 0:02:11.8]} 18.
Be2 {[%clk 0:02:27.9]} 18... Qa5 {[%clk 0:02:02.6]} 19. Nf1 {[%clk 0:02:26.5]}
19... Nc6 {[%clk 0:01:57.5]} 20. Bd2 {[%clk 0:02:04.3]} 20... Nd4 {[%clk
0:01:49.7]} 21. Qb1 {[%clk 0:02:03.8]} 21... Qc7 {[%clk 0:01:48.5]} 22. Ne3
{[%clk 0:02:03.7]} 22... Qb8 {[%clk 0:01:41.1]} 23. a4 {[%clk 0:01:41.6]} 23...
Qc7 {[%clk 0:01:36.7]} 24. Nc2 {[%clk 0:01:27.3]} 24... Qb6 {[%clk 0:01:25.6]}
25. Bf1 {[%clk 0:01:06.8]} 25... Nh5 {[%clk 0:01:03.5]} 26. Nxd4 {[%clk
0:00:55.8]} 26... cxd4 {[%clk 0:00:59.4]} 27. Na2 {[%clk 0:00:43.2]} 27... Nf4
{[%clk 0:00:45]} 28. Nc1 {[%clk 0:00:42.9]} 28... d3+ {[%clk 0:00:26.9]} 29. Kh1
{[%clk 0:00:42.4]} 29... Bxc4 {[%clk 0:00:21.1]} 30. Be3 {[%clk 0:00:27.3]}
30... Qb4 {[%clk 0:00:18.6]} 31. Bxd3 {[%clk 0:00:27.2]} 31... Nxd3 {[%clk
0:00:13]} 32. Nxd3 {[%clk 0:00:27.7]} 32... Qxb3 {[%clk 0:00:13.4]} 33. Nf2
{[%clk 0:00:11.7]} 33... Qxb1 {[%clk 0:00:10.8]} 34. Rxb1 {[%clk 0:00:12.6]}
34... d5 {[%clk 0:00:11.4]} 35. Rxb7 {[%clk 0:00:10.1]} 35... dxe4 {[%clk
0:00:11.8]} 36. fxe4 {[%clk 0:00:10.5]} 36... f5 {[%clk 0:00:11.2]} 37. exf5
{[%clk 0:00:05.4]} 37... Bc3 {[%clk 0:00:11.8]} 38. Ng4 {[%clk 0:00:04.6]} 38...
h5 {[%clk 0:00:06.3]} 39. Nh6+ {[%clk 0:00:03.9]} 39... Kh8 {[%clk 0:00:07]} 40.
Rc1 {[%clk 0:00:02.7]} 40... Rxe3 {[%clk 0:00:06.5]} 41. h4 {[%clk 0:00:03.3]}
41... gxh4 {[%clk 0:00:05.5]} 42. f6 {[%clk 0:00:03.9]} 42... Bxf6 {[%clk
0:00:05.2]} 43. Rxc4 {[%clk 0:00:03.9]} 43... Rd1+ {[%clk 0:00:05.7]} 44. Kh2
{[%clk 0:00:04.5]} 44... Be5+ {[%clk 0:00:06.3]} 45. g3 {[%clk 0:00:05]} 45...
Bxg3+ {[%clk 0:00:06.3]} 46. Kg2 {[%clk 0:00:05.2]} 46... Rd2+ {[%clk
0:00:06.7]} 0-1

[Event "Late-Titled-Tuesday-Blitz-September-05-2023"]
[Site "Chess.com"]
[Date "2023.09.05"]
[Round "8"]
[White "KrokerGuy"]
[Black "ChessSwole"]
[Result "1-0"]
[WhiteElo "2512"]
[BlackElo "2664"]
[TimeControl "180+1"]
[EndTime "15:29:27 PDT"]
[Termination "KrokerGuy won on time"]

1. e4 {[%clk 0:03:00.9]} 1... c5 {[%clk 0:02:59.4]} 2. Nf3 {[%clk 0:03:01.1]}
2... d6 {[%clk 0:02:59.9]} 3. d4 {[%clk 0:03:01.7]} 3... cxd4 {[%clk 0:03:00.5]}
4. Nxd4 {[%clk 0:03:02.6]} 4... Nf6 {[%clk 0:03:01.1]} 5. Nc3 {[%clk 0:03:03.3]}
5... a6 {[%clk 0:03:01.7]} 6. Bg5 {[%clk 0:03:03.8]} 6... e6 {[%clk 0:02:57.7]}
7. f4 {[%clk 0:03:04]} 7... Qc7 {[%clk 0:02:56.5]} 8. Bxf6 {[%clk 0:03:02.5]}
8... gxf6 {[%clk 0:02:56.7]} 9. Qd2 {[%clk 0:03:03.2]} 9... b5 {[%clk
0:02:55.6]} 10. a3 {[%clk 0:03:01.5]} 10... Bb7 {[%clk 0:02:54.9]} 11. O-O-O
{[%clk 0:03:01]} 11... Nc6 {[%clk 0:02:53.4]} 12. Kb1 {[%clk 0:02:59.6]} 12...
h5 {[%clk 0:02:49.4]} 13. f5 {[%clk 0:02:57.5]} 13... Nxd4 {[%clk 0:02:46.3]}
14. Qxd4 {[%clk 0:02:58.4]} 14... Be7 {[%clk 0:02:45.8]} 15. g3 {[%clk
0:02:40.8]} 15... O-O-O {[%clk 0:02:41.6]} 16. fxe6 {[%clk 0:02:38.4]} 16...
fxe6 {[%clk 0:02:39.4]} 17. Bh3 {[%clk 0:02:39]} 17... Qd7 {[%clk 0:02:08.1]}
18. Qa7 {[%clk 0:02:22.4]} 18... f5 {[%clk 0:01:36.9]} 19. Nd5 {[%clk
0:02:16.9]} 19... Bxd5 {[%clk 0:01:33.6]} 20. Qxd7+ {[%clk 0:02:13.6]} 20...
Kxd7 {[%clk 0:01:33.8]} 21. exd5 {[%clk 0:02:11.9]} 21... Rdf8 {[%clk
0:01:31.9]} 22. dxe6+ {[%clk 0:02:10.9]} 22... Kxe6 {[%clk 0:01:32.8]} 23. Rhf1
{[%clk 0:02:04.1]} 23... Rf6 {[%clk 0:01:00.8]} 24. Rxf5 {[%clk 0:01:52]} 24...
Rxf5 {[%clk 0:00:58.6]} 25. Re1+ {[%clk 0:01:52.7]} 25... Kf7 {[%clk 0:00:27.7]}
26. Bxf5 {[%clk 0:01:52.2]} 26... Bf6 {[%clk 0:00:20.6]} 27. c3 {[%clk
0:01:50.8]} 27... Be5 {[%clk 0:00:20.6]} 28. Re2 {[%clk 0:01:44.1]} 28... Kf6
{[%clk 0:00:19.5]} 29. Rf2 {[%clk 0:01:41.9]} 29... Kg5 {[%clk 0:00:18.2]} 30.
h4+ {[%clk 0:01:20.3]} 30... Kh6 {[%clk 0:00:18.3]} 31. g4 {[%clk 0:01:17.6]}
31... hxg4 {[%clk 0:00:19.2]} 32. Bxg4 {[%clk 0:01:18.5]} 32... Kg6 {[%clk
0:00:18.1]} 33. h5+ {[%clk 0:01:16.9]} 33... Kg5 {[%clk 0:00:19]} 34. Be2 {[%clk
0:01:14]} 34... Rc8 {[%clk 0:00:13.1]} 35. Kc2 {[%clk 0:01:13.2]} 35... Rh8
{[%clk 0:00:10.6]} 36. Rg2+ {[%clk 0:01:13.5]} 36... Kf4 {[%clk 0:00:10.8]} 37.
Kd3 {[%clk 0:01:13.3]} 37... Bf6 {[%clk 0:00:09.1]} 38. Rg6 {[%clk 0:01:10.9]}
38... Kf5 {[%clk 0:00:08.9]} 39. Bf3 {[%clk 0:00:45.9]} 39... Re8 {[%clk
0:00:06]} 40. Be4+ {[%clk 0:00:31.1]} 40... Ke5 {[%clk 0:00:04.6]} 41. Rg4
{[%clk 0:00:24.2]} 41... d5 {[%clk 0:00:04.5]} 42. Bg6 {[%clk 0:00:23]} 42...
Rh8 {[%clk 0:00:04.3]} 43. a4 {[%clk 0:00:21.3]} 43... Rb8 {[%clk 0:00:03.1]}
44. axb5 {[%clk 0:00:16.6]} 44... Rxb5 {[%clk 0:00:04]} 45. Kc2 {[%clk
0:00:12.1]} 45... a5 {[%clk 0:00:03.7]} 46. h6 {[%clk 0:00:12.3]} 46... Rb7
{[%clk 0:00:01.3]} 47. Ra4 {[%clk 0:00:11]} 1-0

[Event "Late-Titled-Tuesday-Blitz-September-05-2023"]
[Site "Chess.com"]
[Date "2023.09.05"]
[Round "8"]
[White "Doudou2015"]
[Black "IngOscarArdila"]
[Result "1-0"]
[WhiteElo "2214"]
[BlackElo "2363"]
[TimeControl "180+1"]
[EndTime "15:29:27 PDT"]
[Termination "Doudou2015 won by checkmate"]

1. b3 {[%clk 0:02:59.5]} 1... Nf6 {[%clk 0:02:59.8]} 2. Bb2 {[%clk 0:03:00.4]}
2... e6 {[%clk 0:02:59.9]} 3. e3 {[%clk 0:03:00.9]} 3... Be7 {[%clk 0:02:59.9]}
4. f4 {[%clk 0:03:00.7]} 4... O-O {[%clk 0:02:59.7]} 5. Nf3 {[%clk 0:03:01.1]}
5... d6 {[%clk 0:02:59.8]} 6. Be2 {[%clk 0:03:00.4]} 6... c5 {[%clk 0:03:00]} 7.
O-O {[%clk 0:03:01.2]} 7... Nc6 {[%clk 0:03:00.1]} 8. d3 {[%clk 0:03:00.3]} 8...
Ne8 {[%clk 0:02:57.2]} 9. Nbd2 {[%clk 0:02:58.9]} 9... Bf6 {[%clk 0:02:57.7]}
10. Bxf6 {[%clk 0:02:58.7]} 10... Nxf6 {[%clk 0:02:56.6]} 11. e4 {[%clk
0:02:58.7]} 11... Qc7 {[%clk 0:02:53.8]} 12. g3 {[%clk 0:02:57.6]} 12... Nd4
{[%clk 0:02:54]} 13. Nxd4 {[%clk 0:02:55]} 13... cxd4 {[%clk 0:02:54.9]} 14. Nf3
{[%clk 0:02:55.9]} 14... e5 {[%clk 0:02:54.1]} 15. Rc1 {[%clk 0:02:45.2]} 15...
Re8 {[%clk 0:02:42.3]} 16. Qd2 {[%clk 0:02:42.5]} 16... Qb6 {[%clk 0:02:41.1]}
17. Kg2 {[%clk 0:02:41.5]} 17... Ng4 {[%clk 0:02:40.2]} 18. Rfe1 {[%clk
0:02:29.9]} 18... Ne3+ {[%clk 0:02:40.2]} 19. Kh1 {[%clk 0:02:26.7]} 19... Re6
{[%clk 0:02:05.6]} 20. c3 {[%clk 0:02:14.3]} 20... Rh6 {[%clk 0:02:04.6]} 21.
fxe5 {[%clk 0:01:58]} 21... dxe5 {[%clk 0:02:04.6]} 22. Nxe5 {[%clk 0:01:44.1]}
22... f6 {[%clk 0:01:42.3]} 23. cxd4 {[%clk 0:01:38.8]} 23... fxe5 {[%clk
0:01:32.2]} 24. Qxe3 {[%clk 0:01:38.1]} 24... exd4 {[%clk 0:01:32.5]} 25. Qf2
{[%clk 0:01:30.6]} 25... Be6 {[%clk 0:01:29.7]} 26. Rf1 {[%clk 0:01:23.4]} 26...
Rf6 {[%clk 0:01:28]} 27. Qg1 {[%clk 0:01:20.8]} 27... Rh6 {[%clk 0:01:21.8]} 28.
Rf4 {[%clk 0:01:14.2]} 28... Rd8 {[%clk 0:01:19.2]} 29. Bg4 {[%clk 0:01:07]}
29... Qb4 {[%clk 0:00:49.6]} 30. Bxe6+ {[%clk 0:00:59.6]} 30... Rxe6 {[%clk
0:00:49.7]} 31. Rc4 {[%clk 0:00:55.3]} 31... Qb6 {[%clk 0:00:45.6]} 32. Qf2
{[%clk 0:00:38.8]} 32... h6 {[%clk 0:00:43.9]} 33. Rc1 {[%clk 0:00:34.8]} 33...
Qb4 {[%clk 0:00:41.7]} 34. Rc4 {[%clk 0:00:34.5]} 34... Qb6 {[%clk 0:00:41.4]}
35. Rc1 {[%clk 0:00:35.1]} 35... Qa5 {[%clk 0:00:39.6]} 36. Rf1 {[%clk
0:00:32.9]} 36... Ree8 {[%clk 0:00:25.8]} 37. Rf5 {[%clk 0:00:29.2]} 37... Qc3
{[%clk 0:00:21.4]} 38. Qf3 {[%clk 0:00:26.3]} 38... Qb4 {[%clk 0:00:17.6]} 39.
Qh5 {[%clk 0:00:25.4]} 39... Qd6 {[%clk 0:00:15.1]} 40. Qf7+ {[%clk 0:00:24.2]}
40... Kh7 {[%clk 0:00:14.4]} 41. R1f3 {[%clk 0:00:18]} 41... Re7 {[%clk
0:00:11.3]} 42. Qh5 {[%clk 0:00:13.1]} 42... Qb4 {[%clk 0:00:09.5]} 43. Rf7
{[%clk 0:00:11.2]} 43... Rdd7 {[%clk 0:00:08.3]} 44. Qf5+ {[%clk 0:00:08.9]}
44... Kg8 {[%clk 0:00:02.8]} 45. Rf8# {[%clk 0:00:09.8]} 1-0

[Event "Late-Titled-Tuesday-Blitz-September-05-2023"]
[Site "Chess.com"]
[Date "2023.09.05"]
[Round "8"]
[White "Parhamov"]
[Black "Firouzja2003"]
[Result "0-1"]
[WhiteElo "2982"]
[BlackElo "3133"]
[TimeControl "180+1"]
[EndTime "15:29:28 PDT"]
[Termination "Firouzja2003 won on time"]

1. d4 {[%clk 0:03:00.9]} 1... Nf6 {[%clk 0:02:59.9]} 2. c4 {[%clk 0:03:01.4]}
2... e6 {[%clk 0:02:59.9]} 3. Nf3 {[%clk 0:03:01.5]} 3... d5 {[%clk 0:03:00.2]}
4. g3 {[%clk 0:03:02.2]} 4... dxc4 {[%clk 0:02:53.6]} 5. Bg2 {[%clk 0:02:58.4]}
5... Nc6 {[%clk 0:02:53.8]} 6. O-O {[%clk 0:02:57.9]} 6... Rb8 {[%clk
0:02:53.7]} 7. a4 {[%clk 0:02:52.8]} 7... b6 {[%clk 0:02:40.2]} 8. Nc3 {[%clk
0:02:31.6]} 8... Bb7 {[%clk 0:02:27.6]} 9. Bf4 {[%clk 0:02:17.7]} 9... Be7
{[%clk 0:02:25.9]} 10. Nb5 {[%clk 0:02:00.7]} 10... Nd5 {[%clk 0:02:21.2]} 11.
Bd2 {[%clk 0:02:00.5]} 11... O-O {[%clk 0:02:09.6]} 12. Qc2 {[%clk 0:01:59.9]}
12... a6 {[%clk 0:01:52.4]} 13. Na3 {[%clk 0:01:59.8]} 13... Bxa3 {[%clk
0:01:52.8]} 14. bxa3 {[%clk 0:01:54.3]} 14... b5 {[%clk 0:01:31.4]} 15. Rab1
{[%clk 0:01:41.6]} 15... Ba8 {[%clk 0:01:30.4]} 16. axb5 {[%clk 0:01:41.6]}
16... axb5 {[%clk 0:01:30.4]} 17. a4 {[%clk 0:01:42.2]} 17... bxa4 {[%clk
0:01:27.7]} 18. Qxc4 {[%clk 0:01:40]} 18... Nb6 {[%clk 0:01:17.7]} 19. Qd3
{[%clk 0:01:39]} 19... h6 {[%clk 0:01:14.1]} 20. e4 {[%clk 0:01:32.5]} 20... Qd7
{[%clk 0:01:05.5]} 21. Rfc1 {[%clk 0:01:31.2]} 21... Rfd8 {[%clk 0:01:01.4]} 22.
Bc3 {[%clk 0:01:18.4]} 22... Bb7 {[%clk 0:00:42.3]} 23. Ba1 {[%clk 0:01:13.5]}
23... Ra8 {[%clk 0:00:35.2]} 24. Qc3 {[%clk 0:01:06.4]} 24... f6 {[%clk
0:00:34.4]} 25. Rb5 {[%clk 0:00:59.4]} 25... Ne7 {[%clk 0:00:26.6]} 26. Rc5
{[%clk 0:00:40.7]} 26... Bxe4 {[%clk 0:00:26.7]} 27. Ne5 {[%clk 0:00:40.9]}
27... fxe5 {[%clk 0:00:27.3]} 28. Bxe4 {[%clk 0:00:40.8]} 28... Nbd5 {[%clk
0:00:26.8]} 29. Qf3 {[%clk 0:00:37.3]} 29... Rf8 {[%clk 0:00:24.5]} 30. Qh5
{[%clk 0:00:35]} 30... Nf6 {[%clk 0:00:14.8]} 31. Qxe5 {[%clk 0:00:35]} 31...
Nxe4 {[%clk 0:00:15.5]} 32. Qxe4 {[%clk 0:00:25.1]} 32... Nd5 {[%clk 0:00:14.8]}
33. Re1 {[%clk 0:00:21.1]} 33... Ra6 {[%clk 0:00:14.7]} 34. h4 {[%clk
0:00:19.2]} 34... a3 {[%clk 0:00:14.9]} 35. Re2 {[%clk 0:00:18.2]} 35... a2
{[%clk 0:00:10.7]} 36. Kh2 {[%clk 0:00:17.3]} 36... Rb8 {[%clk 0:00:07.5]} 37.
Rc1 {[%clk 0:00:13.8]} 37... Nf6 {[%clk 0:00:06.9]} 38. Qd3 {[%clk 0:00:12]}
38... Ra5 {[%clk 0:00:06.3]} 39. Qc4 {[%clk 0:00:08.4]} 39... Qd5 {[%clk
0:00:05.2]} 40. Qxc7 {[%clk 0:00:08.2]} 40... Rb1 {[%clk 0:00:05.4]} 41. Qc8+
{[%clk 0:00:01.7]} 41... Kh7 {[%clk 0:00:05.3]} 42. Qc2+ {[%clk 0:00:01.3]}
42... Qf5 {[%clk 0:00:04.7]} 0-1

[Event "Late-Titled-Tuesday-Blitz-September-05-2023"]
[Site "Chess.com"]
[Date "2023.09.05"]
[Round "8"]
[White "Mesa_1"]
[Black "Zhigalko_Sergei"]
[Result "1/2-1/2"]
[WhiteElo "2630"]
[BlackElo "2884"]
[TimeControl "180+1"]
[EndTime "15:29:31 PDT"]
[Termination "Game drawn by repetition"]

1. e4 {[%clk 0:02:59.7]} 1... c5 {[%clk 0:03:00.1]} 2. Nf3 {[%clk 0:03:00]} 2...
Nc6 {[%clk 0:03:00.6]} 3. Nc3 {[%clk 0:02:59]} 3... Nf6 {[%clk 0:03:01.1]} 4. d4
{[%clk 0:02:52.5]} 4... cxd4 {[%clk 0:03:01.2]} 5. Nxd4 {[%clk 0:02:53.4]} 5...
e5 {[%clk 0:03:02.1]} 6. Ndb5 {[%clk 0:02:53.1]} 6... d6 {[%clk 0:03:02.5]} 7.
Bg5 {[%clk 0:02:53.6]} 7... a6 {[%clk 0:03:02.8]} 8. Na3 {[%clk 0:02:54.3]} 8...
b5 {[%clk 0:03:03.3]} 9. Nab1 {[%clk 0:02:55.1]} 9... Be7 {[%clk 0:02:58.6]} 10.
Bxf6 {[%clk 0:02:55]} 10... Bxf6 {[%clk 0:02:58.7]} 11. a4 {[%clk 0:02:55.8]}
11... b4 {[%clk 0:02:58.9]} 12. Nd5 {[%clk 0:02:56.5]} 12... Bg5 {[%clk
0:02:53.5]} 13. Bc4 {[%clk 0:02:56.6]} 13... O-O {[%clk 0:02:52.8]} 14. O-O
{[%clk 0:02:57.3]} 14... Kh8 {[%clk 0:02:52.7]} 15. Qd3 {[%clk 0:02:49.6]} 15...
f5 {[%clk 0:02:50.5]} 16. Nd2 {[%clk 0:02:49.7]} 16... Bxd2 {[%clk 0:01:40.8]}
17. Qxd2 {[%clk 0:02:49.5]} 17... a5 {[%clk 0:01:18.3]} 18. exf5 {[%clk
0:02:41]} 18... Bxf5 {[%clk 0:01:12.3]} 19. Ne3 {[%clk 0:02:41.5]} 19... Bg6
{[%clk 0:01:09.9]} 20. Rad1 {[%clk 0:02:40.2]} 20... Bh5 {[%clk 0:00:48.8]} 21.
f3 {[%clk 0:02:05.5]} 21... Qb6 {[%clk 0:00:48.5]} 22. Kh1 {[%clk 0:02:06.2]}
22... Rad8 {[%clk 0:00:47.7]} 23. c3 {[%clk 0:01:38.3]} 23... bxc3 {[%clk
0:00:25.8]} 24. bxc3 {[%clk 0:01:39.2]} 24... e4 {[%clk 0:00:25.6]} 25. g4
{[%clk 0:01:21.8]} 25... Bg6 {[%clk 0:00:14.8]} 26. f4 {[%clk 0:01:17.5]} 26...
Qc5 {[%clk 0:00:15.4]} 27. Kg2 {[%clk 0:00:59.8]} 27... h6 {[%clk 0:00:13.5]}
28. h3 {[%clk 0:00:59.2]} 28... Rb8 {[%clk 0:00:10]} 29. Qe2 {[%clk 0:00:54.7]}
29... Qa3 {[%clk 0:00:06.8]} 30. Bb5 {[%clk 0:00:55]} 30... Na7 {[%clk
0:00:04.4]} 31. f5 {[%clk 0:00:43.3]} 31... Bf7 {[%clk 0:00:04.2]} 32. f6 {[%clk
0:00:43.4]} 32... g5 {[%clk 0:00:03.1]} 33. h4 {[%clk 0:00:41.4]} 33... Qc5
{[%clk 0:00:02.9]} 34. Rf5 {[%clk 0:00:39.8]} 34... Qxc3 {[%clk 0:00:02.7]} 35.
hxg5 {[%clk 0:00:39.8]} 35... Nxb5 {[%clk 0:00:03.3]} 36. axb5 {[%clk
0:00:37.9]} 36... Be6 {[%clk 0:00:02.3]} 37. Rf2 {[%clk 0:00:28.9]} 37... Qe5
{[%clk 0:00:02.7]} 38. gxh6 {[%clk 0:00:25.7]} 38... Rxf6 {[%clk 0:00:02.3]} 39.
Rxf6 {[%clk 0:00:20.7]} 39... Qxf6 {[%clk 0:00:03.2]} 40. Rxd6 {[%clk
0:00:20.3]} 40... Rf8 {[%clk 0:00:03.9]} 41. Nf5 {[%clk 0:00:19.3]} 41... Qe5
{[%clk 0:00:04]} 42. Rxe6 {[%clk 0:00:18.8]} 42... Qxe6 {[%clk 0:00:04.9]} 43.
Qb2+ {[%clk 0:00:19.1]} 43... Qf6 {[%clk 0:00:05.4]} 44. Qd2 {[%clk 0:00:16.4]}
44... Rg8 {[%clk 0:00:05.2]} 45. Kh3 {[%clk 0:00:15.9]} 45... a4 {[%clk
0:00:05.2]} 46. Qd7 {[%clk 0:00:15.7]} 46... Qg6 {[%clk 0:00:05.2]} 47. Qd4+
{[%clk 0:00:15.1]} 47... Kh7 {[%clk 0:00:05.1]} 48. Qd7+ {[%clk 0:00:15.8]}
48... Kh8 {[%clk 0:00:05.4]} 49. Qd4+ {[%clk 0:00:16.4]} 49... Kh7 {[%clk
0:00:05.8]} 50. Qd7+ {[%clk 0:00:16.7]} 50... Kh8 {[%clk 0:00:04.7]} 1/2-1/2